bitfinex/quotes_SOLUSD_20250811
["timestamp","ask_amount","ask_price","bid_price","bid_amount"]
[1754917820883,14.50823904,178.13,178.09,0.71]
[1754917821196,14.50823904,178.14,178.09,15.21823904]
[1754917821492,14.50823904,178.12,178.08,0.06]
[1754917821704,14.50823904,178.09,178.08,0.06]
[1754917822197,14.90823904,178.09,178.08,0.06]
[1754917822807,20.52337745,178.09,178.08,0.06]
[1754917822966,14.50823904,178.09,178.08,0.06]
[1754917823367,20.52337745,178.09,178.08,0.06]
[1754917823800,40.50823904,178.09,178.08,0.06]
[1754917824092,26.0,178.09,178.08,0.06]
[1754917824280,145.7,178.11,178.08,0.06]
[1754917824486,145.7,178.11,178.08,15.27823904]
[1754917824661,14.50823904,178.17,178.11,5.61450788]
[1754917824868,14.50823904,178.16,178.11,20.12274692]
[1754917825395,41.08,178.17,178.12,0.71]
[1754917825583,41.08,178.17,178.14,14.50823904]
[1754917825791,41.08,178.17,178.14,15.21823904]
[1754917825974,41.08,178.17,178.14,14.50823904]
[1754917826475,26.0,178.18,178.14,14.50823904]
[1754917826911,26.0,178.18,178.16,14.50823904]
[1754917827100,41.06,178.21,178.17,0.71]
[1754917827267,41.08,178.24,178.18,0.71]
[1754917827576,41.08,178.26,178.18,0.71]
[1754917827771,0.4,178.29,178.19,15.10621557]
[1754917827772,41.1,178.27,178.19,15.10621557]
[1754917827969,14.50823904,178.3,178.25,14.50823904]
[1754917828269,26.0,178.27,178.24,14.50823904]
[1754917828470,26.0,178.27,178.22,0.71]
[1754917828471,26.0,178.27,178.23,14.50823904]
[1754917828687,14.50823904,178.25,178.2,14.50823904]
[1754917828888,14.50823904,178.22,178.18,0.71]
[1754917829087,14.50823904,178.22,178.08,24.56823904]
[1754917829088,46.03649643,178.24,178.15,15.21823904]
[1754917829282,14.50823904,178.19,178.15,0.71]
[1754917829480,26.0,178.21,178.15,0.71]
[1754917829692,26.0,178.21,178.13,15.10621557]
[1754917829898,140.0,178.15,178.14,14.50823904]
[1754917830196,140.0,178.15,178.14,15.21823904]
[1754917830382,14.50823904,178.19,178.14,15.21823904]
[1754917830781,20.12043521,178.19,178.14,15.21823904]
[1754917830981,20.12043521,178.19,178.14,14.50823904]
[1754917831191,20.12043521,178.19,178.15,0.71]
[1754917831679,14.50823904,178.17,178.12,15.21823904]
[1754917831888,14.50823904,178.17,178.12,0.71]
[1754917832191,14.50823904,178.15,178.1,15.21823904]
[1754917832397,14.50823904,178.17,178.12,14.50823904]
[1754917832584,14.50823904,178.17,178.12,15.21823904]
[1754917832987,5.61293219,178.16,178.12,15.21823904]
[1754917833198,20.12117123,178.16,178.11,14.50823904]
[1754917833499,140.0,178.12,178.11,15.21823904]
[1754917833870,14.50823904,178.15,178.11,0.71]
[1754917834292,14.50823904,178.14,178.08,21.49161047]
[1754917834501,14.50823904,178.14,178.09,14.50823904]
[1754917834993,20.12183465,178.14,178.09,14.50823904]
[1754917835195,14.50823904,178.13,178.08,15.27823904]
[1754917835602,14.50823904,178.12,178.08,0.77]
[1754917835778,14.50823904,178.13,178.08,15.27823904]
[1754917835979,61.16183465,178.14,178.09,14.50823904]
[1754917836399,55.54823904,178.14,178.09,14.50823904]
[1754917836600,14.50823904,178.12,178.08,0.77]
[1754917836913,14.50823904,178.13,178.08,20.89360895]
[1754917837978,14.50823904,178.13,178.08,20.18360895]
[1754917838184,67.02,178.15,178.09,0.71]
[1754917838394,81.52823904,178.15,178.1,14.50823904]
[1754917838907,14.50823904,178.14,178.1,0.71]
[1754917839080,14.50823904,178.12,178.08,5.67536991]
[1754917839280,14.50823904,178.14,178.09,15.21823904]
[1754917839483,42.02,178.15,178.09,14.50823904]
[1754917839793,42.02,178.15,178.08,5.67536991]
[1754917839794,14.50823904,178.14,178.1,0.71]
[1754917839983,14.50823904,178.14,178.11,5.61450788]
[1754917840184,42.02,178.15,178.11,20.12274692]
[1754917840383,42.02,178.15,178.12,0.71]
[1754917840590,56.52823904,178.15,178.11,5.61450788]
[1754917840791,14.50823904,178.12,178.08,0.06]
[1754917840992,14.50823904,178.11,178.08,0.06]
[1754917841189,0.4,178.11,178.08,0.06]
[1754917841403,14.50823904,178.12,178.08,0.06]
[1754917841604,14.50823904,178.11,178.08,0.06]
[1754917841800,14.50823904,178.09,178.08,0.06]
[1754917842312,26.4,178.09,178.08,0.06]
[1754917842604,26.0,178.09,178.08,0.06]
[1754917842982,40.98,178.11,178.08,0.06]
[1754917843304,26.0,178.12,178.08,10.4143189]
[1754917843487,26.4,178.12,178.08,0.06]
[1754917843689,9.6443189,178.11,178.08,0.06]
[1754917844189,14.54764759,178.11,178.08,0.06]
[1754917844505,40.54764759,178.12,178.08,0.06]
[1754917844704,26.0,178.12,178.09,0.71]
[1754917844914,40.98,178.15,178.1,15.25764759]
[1754917845113,55.52764759,178.15,178.11,15.25764759]
[1754917845283,14.54764759,178.16,178.11,15.25764759]
[1754917845483,14.54764759,178.15,178.1,14.54764759]
[1754917845683,14.54764759,178.14,178.08,0.77]
[1754917845995,14.54764759,178.14,178.1,14.54764759]
[1754917846196,41.02,178.18,178.13,14.54764759]
[1754917846387,14.54764759,178.17,178.12,20.16184026]
[1754917846590,14.54764759,178.15,178.11,20.16207192]
[1754917846788,26.0,178.15,178.11,5.61442433]
[1754917846990,14.54764759,178.14,178.09,20.162786]
[1754917847210,14.54764759,178.13,178.09,5.61513841]
[1754917847397,14.54764759,178.13,178.09,20.162786]
[1754917847590,26.1,178.15,178.09,20.162786]
[1754917847798,14.54764759,178.14,178.09,20.162786]
[1754917848094,14.54764759,178.14,178.1,14.54764759]
[1754917848295,26.0,178.15,178.11,14.54764759]
[1754917848709,26.0,178.15,178.11,15.21764759]
[1754917849015,40.54764759,178.15,178.11,0.67]
[1754917849513,26.0,178.15,178.11,15.21764759]
[1754917850212,14.54764759,178.12,178.09,5.61513841]
[1754917850404,14.54764759,178.13,178.09,5.61513841]
[1754917850818,14.54764759,178.13,178.08,0.06]
[1754917850997,14.54764759,178.11,178.08,0.06]
[1754917851601,14.54764759,178.09,178.08,0.06]
[1754917851901,14.74764759,178.09,178.08,0.06]
[1754917852105,14.54764759,178.09,178.08,0.06]
[1754917852805,40.74764759,178.09,178.08,0.06]
[1754917853011,14.74764759,178.09,178.08,0.06]
[1754917853594,14.54764759,178.09,178.08,0.06]
[1754917854198,20.162786,178.09,178.08,0.06]
[1754917854404,20.362786,178.09,178.08,0.06]
[1754917854608,46.57490087,178.1,178.08,0.06]
[1754917854803,14.54764759,178.09,178.08,0.06]
[1754917855597,0.4,178.09,178.08,0.06]
[1754917855798,14.94764759,178.09,178.08,0.06]
[1754917856128,20.562786,178.09,178.08,0.06]
[1754917856502,20.162786,178.09,178.08,0.06]
[1754917856704,14.54764759,178.09,178.08,0.06]
[1754917857434,20.562786,178.09,178.08,0.06]
[1754917857900,14.54764759,178.09,178.08,0.06]
[1754917858326,66.96,178.1,178.08,0.06]
[1754917858517,81.50764759,178.1,178.08,0.73]
[1754917858716,0.43,178.15,178.08,0.73]
[1754917858717,2.24915,178.13,178.09,0.67]
[1754917858912,46.47371006,178.14,178.08,14.60764759]
[1754917859114,14.54764759,178.12,178.08,14.60764759]
[1754917859311,14.54764759,178.12,178.08,15.27764759]
[1754917859512,14.54764759,178.11,178.08,0.06]
[1754917859819,26.0,178.14,178.08,0.73]
[1754917859998,81.42764759,178.14,178.09,14.54764759]
[1754917860198,14.54764759,178.13,178.1,0.67]
[1754917860424,55.42764759,178.14,178.09,20.16257027]
[1754917860603,26.0,178.12,178.11,0.67]
[1754917860798,140.0,178.11,178.08,0.06]
[1754917861000,14.54764759,178.09,178.08,0.06]
[1754917861408,26.0,178.09,178.08,0.06]
[1754917861609,40.54764759,178.09,178.08,0.06]
[1754917862228,46.162786,178.09,178.08,0.06]
[1754917863012,46.562786,178.09,178.08,0.06]
[1754917863446,46.162786,178.09,178.08,0.06]
[1754917863801,40.54764759,178.09,178.08,0.06]
[1754917864236,26.0,178.09,178.08,0.73]
[1754917864530,26.0,178.09,178.08,0.06]
[1754917864731,40.54764759,178.09,178.08,0.06]
[1754917864915,26.0,178.09,178.08,0.06]
[1754917865229,40.54764759,178.09,178.08,0.06]
[1754917865637,87.042786,178.09,178.08,0.06]
[1754917866219,82.14052361,178.09,178.08,0.06]
[1754917868412,56.14052361,178.09,178.08,0.06]
[1754917868618,56.54052361,178.09,178.08,0.06]
[1754917869805,58.79017861,178.09,178.08,0.06]
[1754917870406,58.39017861,178.09,178.08,0.06]
[1754917870630,58.79017861,178.09,178.08,0.06]
[1754917872627,68.43556381,178.09,178.07,0.06]
[1754917872918,180.49698597,178.08,178.06,0.16277462]
[1754917873208,26.0,178.05,178.04,1e-08]
[1754917873420,26.0,178.03,178.02,0.06]
[1754917873735,26.0,178.03,178.0,0.2]
[1754917873736,145.7,178.02,178.0,0.2]
[1754917873938,26.0,177.98,177.92,0.2]
[1754917874111,9.6453852,177.93,177.92,0.2]
[1754917874909,50.4453852,177.93,177.92,0.2]
[1754917875643,56.06557291,177.93,177.92,0.2]
[1754917875812,50.4453852,177.93,177.92,0.2]
[1754917876020,50.4453852,177.93,177.92,0.87]
[1754917876518,40.8,177.93,177.92,0.87]
[1754917876739,9.6453852,177.97,177.92,0.87]
[1754917876938,50.4253852,177.96,177.92,0.87]
[1754917877232,40.78,177.96,177.93,0.67]
[1754917877445,40.78,177.96,177.93,10.3153852]
[1754917877635,40.78,177.96,177.94,0.67]
[1754917877826,40.78,177.96,177.95,0.67]
[1754917878211,40.8,177.97,177.95,0.67]
[1754917878637,9.6453852,177.96,177.92,6.53046994]
[1754917878847,9.6453852,177.96,177.93,0.71]
[1754917879046,40.8,177.97,177.94,0.71]
[1754917879254,50.4453852,177.97,177.95,0.71]
[1754917879951,140.0,177.95,177.93,5.62010318]
[1754917880236,140.0,177.95,177.94,0.71]
[1754917880416,40.8,177.97,177.94,0.71]
[1754917880619,40.8,177.97,177.95,0.71]
[1754917880844,40.8,177.97,177.94,9.6453852]
[1754917880845,26.0,177.97,177.96,0.71]
[1754917881122,26.0,177.99,177.96,0.71]
[1754917881446,35.6453852,177.97,177.92,0.2]
[1754917881645,35.6453852,177.93,177.92,0.2]
[1754917881962,26.0,177.93,177.92,5.82050359]
[1754917882119,26.0,177.93,177.92,0.2]
[1754917882322,26.0,177.93,177.92,5.82050359]
[1754917882540,26.0,177.93,177.92,6.53050359]
[1754917882839,26.0,177.93,177.92,0.91]
[1754917883244,35.6453852,177.93,177.92,0.91]
[1754917883449,26.0,177.93,177.92,0.91]
[1754917883650,35.6453852,177.93,177.92,0.2]
[1754917884025,35.6453852,177.93,177.92,0.91]
[1754917884229,35.6453852,177.93,177.92,0.2]
[1754917884824,76.4453852,177.93,177.92,0.2]
[1754917885457,82.06557291,177.93,177.92,0.2]
[1754917885952,76.4453852,177.93,177.92,0.2]
[1754917886329,82.06557291,177.93,177.92,0.2]
[1754917887253,76.4453852,177.93,177.92,0.2]
[1754917888947,82.06557291,177.93,177.92,0.2]
[1754917889355,66.8,177.93,177.92,0.91]
[1754917889530,26.0,177.93,177.92,0.91]
[1754917889955,26.0,177.93,177.92,6.53043154]
[1754917890341,9.6453852,177.94,177.92,0.91]
[1754917890538,40.78,177.95,177.93,0.71]
[1754917890728,40.78,177.95,177.94,0.71]
[1754917891150,9.6453852,177.95,177.92,0.91]
[1754917891545,40.78,177.96,177.93,0.71]
[1754917891765,26.0,177.97,177.94,10.3553852]
[1754917891998,26.0,177.97,177.94,9.6453852]
[1754917892154,26.0,177.97,177.95,0.71]
[1754917892337,26.0,177.97,177.94,9.6453852]
[1754917892533,40.78,177.98,177.96,0.71]
[1754917892738,145.7,177.99,177.97,0.71]
[1754917892955,9.645386,178.01,177.98,10.3553852]
[1754917893260,0.03,178.06,178.0,9.6453852]
[1754917893470,0.03,178.06,178.05,9.6453852]
[1754917893640,0.03,178.06,178.05,0.71]
[1754917894065,0.03,178.06,178.05,6.32639988]
[1754917894456,0.03,178.06,178.03,9.6453852]
[1754917894646,9.6453852,178.04,178.01,0.71]
[1754917894966,9.6453852,178.02,177.98,6.32860883]
[1754917895151,9.6453852,178.02,177.99,0.71]
[1754917895767,9.6453852,178.02,177.96,0.71]
[1754917895768,9.6453852,178.0,177.96,0.71]
[1754917895974,9.6453852,178.01,177.96,31.08082053]
[1754917896152,9.6453852,178.01,177.97,9.6453852]
[1754917896339,40.82,178.02,177.98,0.71]
[1754917896340,9.6453852,178.0,177.98,0.71]
[1754917896542,9.6453852,177.99,177.95,0.71]
[1754917896877,9.6453852,177.97,177.93,9.6453852]
[1754917897080,40.82,178.0,177.93,6.33018771]
[1754917897081,9.6453852,177.96,177.93,6.33018771]
[1754917897466,9.6453852,177.97,177.94,0.71]
[1754917897784,9.6453852,177.96,177.93,15.10621557]
[1754917897992,9.6453852,177.94,177.92,0.2]
[1754917898165,5.61924167,177.96,177.92,0.2]
[1754917898498,9.6453852,177.94,177.92,0.91]
[1754917898693,9.6453852,177.94,177.92,0.2]
[1754917898888,9.6453852,177.93,177.92,0.2]
[1754917899990,15.26557291,177.93,177.92,0.2]
[1754917900191,9.6453852,177.93,177.92,0.2]
[1754917900380,9.6453852,177.97,177.92,10.5553852]
[1754917900685,26.0,177.95,177.93,10.3553852]
[1754917900862,26.0,177.95,177.94,9.6453852]
[1754917901185,40.82,177.98,177.94,10.3553852]
[1754917901391,40.82,177.99,177.95,10.3553852]
[1754917901567,26.0,177.97,177.96,0.71]
[1754917901769,0.03,178.0,177.97,0.71]
[1754917901974,26.03,178.0,177.99,15.26367836]
[1754917902188,26.03,178.0,177.99,10.3553852]
[1754917902695,9.6753852,178.0,177.93,9.6453852]
[1754917902896,9.6453852,177.95,177.92,0.2]
[1754917903081,9.6453852,177.94,177.92,0.2]
[1754917903283,9.6453852,177.95,177.92,0.2]
[1754917903495,9.6453852,177.93,177.92,0.2]
[1754917904071,5.61971561,177.95,177.92,0.2]
[1754917904273,35.6453852,177.93,177.92,0.2]
[1754917904480,76.4853852,177.93,177.92,0.2]
[1754917904978,66.84,177.93,177.92,0.91]
[1754917905195,26.0,177.93,177.92,0.91]
[1754917905395,50.4853852,177.95,177.92,0.91]
[1754917905777,50.4853852,177.95,177.92,0.2]
[1754917905974,40.84,177.95,177.93,0.71]
[1754917906179,26.0,177.95,177.94,0.71]
[1754917906396,9.845385,177.99,177.94,0.71]
[1754917906582,40.86,177.99,177.96,9.6453852]
[1754917906794,0.03,178.0,177.97,10.3553852]
[1754917907413,0.03,178.0,177.99,9.6453852]
[1754917907781,0.03,178.0,177.99,25.46160077]
[1754917908100,0.03,178.0,177.99,15.81621557]
[1754917908596,9.6753852,178.0,177.98,15.10621557]
[1754917908791,35.6753852,178.0,177.95,0.69]
[1754917908996,9.6753852,178.0,177.96,0.69]
[1754917909183,9.6453852,177.99,177.96,0.69]
[1754917909803,26.03,178.0,177.95,15.10621557]
[1754917909989,9.6453852,177.99,177.95,15.79621557]
[1754917910380,9.6453852,177.98,177.95,15.79621557]
[1754917910594,31.64802283,178.0,177.93,15.26550925]
[1754917910803,9.6453852,177.99,177.94,24.75160077]
[1754917910994,26.03,178.0,177.95,10.3353852]
[1754917911204,35.6753852,178.0,177.96,0.69]
[1754917911508,26.03,178.0,177.97,0.69]
[1754917911831,0.03,178.0,177.94,15.10621557]
[1754917912006,9.6453852,177.99,177.94,25.44160077]
[1754917912319,9.6453852,177.95,177.93,15.10621557]
[1754917912521,9.6453852,177.95,177.92,0.2]
[1754917912688,9.6453852,177.95,177.92,15.30621557]
[1754917912889,9.6453852,177.94,177.92,15.30621557]
[1754917913428,9.6453852,177.93,177.92,0.2]
[1754917914125,41.66557291,177.93,177.92,0.2]
[1754917914789,15.66557291,177.93,177.92,0.2]
[1754917915531,20.31912905,177.93,177.92,0.2]
[1754917915894,41.66557291,177.93,177.92,1e-08]
[1754917916193,15.66557291,177.93,177.92,1e-08]
[1754917917121,15.26557291,177.93,177.92,1e-08]
[1754917917321,56.12557291,177.93,177.92,1e-08]
[1754917917521,4.65355614,177.96,177.92,1e-08]
[1754917917712,26.0,177.93,177.92,1e-08]
[1754917917914,37.8973202,177.93,177.92,1e-08]
[1754917918327,26.0,177.93,177.92,1e-08]
[1754917918527,35.6453852,177.93,177.92,1e-08]
[1754917919219,26.0,177.93,177.92,1e-08]
[1754917919430,26.0,177.93,177.92,0.69000001]
[1754917920017,26.0,177.93,177.92,1e-08]
[1754917921231,41.26557291,177.93,177.92,1e-08]
[1754917921537,35.6453852,177.93,177.92,1e-08]
[1754917921716,41.26557291,177.93,177.92,1e-08]
[1754917921910,26.0,177.93,177.92,1e-08]
[1754917922109,26.0,177.93,177.92,0.69000001]
[1754917922632,41.26557291,177.93,177.92,1e-08]
[1754917923223,66.84,177.93,177.92,1e-08]
[1754917923434,66.84,177.93,177.92,0.69000001]
[1754917924036,66.84,177.93,177.92,1e-08]
[1754917924335,82.10557291,177.93,177.92,1e-08]
[1754917924533,66.84,177.93,177.92,1e-08]
[1754917924938,145.7,177.94,177.92,0.69000001]
[1754917925324,145.7,177.94,177.93,0.69]
[1754917926729,9.645385,177.96,177.93,15.95557291]
[1754917926919,9.645385,177.96,177.94,0.69]
[1754917927234,82.06400567,177.98,177.94,0.69]
[1754917927439,91.70939067,177.98,177.94,0.69]
[1754917927829,9.6453852,177.97,177.94,0.69]
[1754917928031,91.70939067,177.98,177.94,0.69]
[1754917928223,35.645385,177.98,177.94,0.69]
[1754917928530,26.0,177.96,177.92,10.33538521]
[1754917928724,9.6453852,177.93,177.92,1e-08]
[1754917929423,9.6453852,177.93,177.92,0.69000001]
[1754917929760,76.4253852,177.93,177.92,1e-08]
[1754917930055,82.44557291,177.93,177.92,1e-08]
[1754917930220,56.44557291,177.93,177.92,1e-08]
[1754917931225,46.40018771,177.93,177.92,1e-08]
[1754917931528,56.04557291,177.93,177.92,1e-08]
[1754917932857,155.3453852,177.94,177.92,1e-08]
[1754917933057,227.72531093,177.94,177.92,1e-08]
[1754917933570,9.6453852,177.93,177.92,1e-08]
[1754917934040,15.66557291,177.93,177.92,1e-08]
[1754917934434,15.26557291,177.93,177.92,1e-08]
[1754917936676,50.3853852,177.93,177.92,1e-08]
[1754917937164,56.0068232,177.93,177.92,1e-08]
[1754917938262,56.4068232,177.93,177.92,1e-08]
[1754917938442,61.62701091,177.93,177.92,1e-08]
[1754917938644,62.02701091,177.93,177.92,1e-08]
[1754917939174,61.62701091,177.93,177.92,1e-08]
[1754917939539,62.02701091,177.93,177.92,1e-08]
[1754917940776,61.62701091,177.93,177.92,1e-08]
[1754917941792,76.73322648,177.93,177.92,1e-08]
[1754917941940,26.0,177.91,177.9,0.2]
[1754917942140,76.3653852,177.91,177.9,0.2]
[1754917942547,82.38620471,177.91,177.9,0.2]
[1754917942743,81.98620471,177.91,177.9,0.2]
[1754917944877,82.38620471,177.91,177.9,1e-08]
[1754917946048,97.49242028,177.91,177.9,1e-08]
[1754917947482,81.98620471,177.91,177.9,1e-08]
[1754917948945,84.63839371,177.91,177.9,1e-08]
[1754917949165,99.74460928,177.91,177.9,1e-08]
[1754917949368,84.23839371,177.91,177.9,1e-08]
[1754917950987,84.23839371,177.91,177.88,0.06]
[1754917950988,15.10621557,177.9,177.88,0.06]
[1754917951160,196.0053852,177.89,177.88,0.06]
[1754917951555,26.0,177.87,177.86,0.06]
[1754917951778,76.3053852,177.87,177.86,0.06]
[1754917952454,4.68661433,177.93,177.86,0.74]
[1754917952653,26.0,177.87,177.86,0.74]
[1754917953654,35.6453852,177.87,177.86,0.74]
[1754917954045,26.0,177.87,177.86,0.74]
[1754917954445,0.03,177.93,177.86,10.3853852]
[1754917954664,26.0,177.88,177.87,0.68]
[1754917956651,156.085386,177.92,177.87,15.94744204]
[1754917956860,145.7,177.91,177.89,9.6453852]
[1754917957154,144.93919002,177.91,177.9,0.68]
[1754917957774,144.93919002,177.91,177.9,10.3253852]
[1754917957991,0.03,177.93,177.9,10.3253852]
[1754917958288,0.03,177.93,177.92,24.75160077]
[1754917958462,0.03,177.93,177.91,0.68]
[1754917958654,0.03,177.93,177.92,0.68]
[1754917959359,9.6753852,177.93,177.9,15.10621557]
[1754917959672,9.6753852,177.93,177.91,0.68]
[1754917959878,0.03,177.93,177.92,0.68]
[1754917960056,0.03,177.93,177.92,10.3253852]
[1754917960385,0.03,177.95,177.93,15.10621557]
[1754917960584,0.03,177.95,177.94,25.43160077]
[1754917961482,0.03,177.95,177.94,15.78621557]
[1754917961857,0.03,177.95,177.94,25.43160077]
[1754917962451,0.03,178.0,177.95,15.10621557]
[1754917962657,0.03,178.0,177.99,24.75160077]
[1754917963085,0.03,178.0,177.95,15.10621557]
[1754917963265,0.03,178.0,177.98,15.10621557]
[1754917963591,0.03,178.0,177.99,9.6453852]
[1754917963885,0.03,178.0,177.99,10.3253852]
[1754917964077,0.03,178.0,177.99,9.6453852]
[1754917964271,0.03,178.0,177.99,10.3253852]
[1754917964591,0.03,178.0,177.99,0.68]
[1754917965510,0.03,178.0,177.99,31.04989393]
[1754917965704,0.03,178.0,177.99,25.43160077]
[1754917965982,0.03,178.0,177.96,14.04781538]
[1754917965983,0.03,178.0,177.97,9.6453852]
[1754917966189,0.03,178.0,177.97,0.68]
[1754917966778,0.03,178.0,177.98,0.68]
[1754917966970,9.6753852,178.0,177.95,5.61947499]
[1754917967155,9.6453852,177.99,177.97,0.68]
[1754917967360,0.03,178.0,177.98,10.3253852]
[1754917967708,0.03,178.0,177.99,24.75160077]
[1754917967860,0.03,178.0,177.99,25.43160077]
[1754917968574,0.03,178.0,177.99,31.04989393]
[1754917971579,0.03,178.02,178.0,15.10621557]
[1754917971787,0.03,178.02,178.01,24.75160077]
[1754917971960,0.03,178.02,178.01,66.02160077]
[1754917972900,0.03,178.02,178.01,15.79621557]
[1754917973200,0.03,178.02,178.01,31.05926269]
[1754917974273,0.03,178.02,178.01,25.44160077]
[1754917974504,0.03,178.02,178.01,66.02160077]
[1754917974698,0.03,178.02,178.01,55.68621557]
[1754917974894,0.03,178.02,178.01,15.10621557]
[1754917975073,9.6753852,178.02,177.97,15.26421801]
[1754917975274,9.6453852,178.0,177.98,15.10621557]
[1754917975794,10.3353852,178.01,177.97,15.10621557]
[1754917975982,9.6453852,178.01,177.97,15.10621557]
[1754917976186,9.6453852,178.0,177.97,15.10621557]
[1754917976386,9.6453852,178.0,177.97,15.79621557]
[1754917976592,9.6453852,178.01,177.97,15.79621557]
[1754917976999,0.03,178.02,177.97,15.10621557]
[1754917977179,10.3653852,178.02,177.97,31.06045712]
[1754917977376,0.03,178.02,177.98,10.3353852]
[1754917977587,9.6753852,178.02,177.98,0.69]
[1754917978681,9.6453852,178.01,177.97,24.75160077]
[1754917978887,9.6453852,178.01,177.97,15.79621557]
[1754917979200,15.26305554,178.01,177.97,15.79621557]
[1754917979391,9.6453852,178.01,177.97,25.44160077]
[1754917979784,6.33741081,178.02,177.99,9.6453852]
[1754917979785,0.72,178.02,177.99,9.6453852]
[1754917979986,0.03,178.02,177.99,9.6453852]
[1754917980386,9.6753852,178.02,177.97,21.41498421]
[1754917980591,9.6453852,177.98,177.92,9.6453852]
[1754917980776,9.6453852,177.94,177.91,0.06]
[1754917981507,0.69,177.99,177.92,9.6453852]
[1754917981707,9.6453852,177.99,177.94,15.10621557]
[1754917981911,9.6453852,177.95,177.93,0.06]
[1754917982599,26.0,177.98,177.94,15.79621557]
[1754917982784,9.6453852,177.97,177.94,15.10621557]
[1754917982983,9.6453852,177.99,177.95,15.79621557]
[1754917983389,9.6453852,177.99,177.95,15.10621557]
[1754917983585,9.6453852,177.98,177.94,5.61980469]
[1754917983905,9.6453852,177.98,177.94,20.72602026]
[1754917984203,16.878112,178.01,177.97,9.6453852]
[1754917984405,9.6453852,177.98,177.95,15.10621557]
[1754917985008,9.6453852,177.99,177.95,21.41551178]
[1754917985192,9.6453852,177.98,177.95,20.72551178]
[1754917985391,9.6453852,177.99,177.95,20.72551178]
[1754917985597,9.6453852,177.98,177.93,51.0153852]
[1754917985798,9.6453852,177.98,177.94,15.10621557]
[1754917985990,9.6453852,177.98,177.94,15.79621557]
[1754917986193,23.18584292,178.01,177.94,15.79621557]
[1754917986713,9.6453852,177.99,177.94,25.44160077]
[1754917987011,35.6453852,178.01,177.96,9.6453852]
[1754917987314,9.6753852,178.02,177.97,10.3353852]
[1754917987487,9.6453852,178.01,177.97,0.69]
[1754917987888,9.6453852,178.0,177.95,15.95494125]
[1754917988117,9.6453852,177.98,177.95,15.10621557]
[1754917988299,9.6453852,177.98,177.93,56.63550025]
[1754917988611,140.0,177.95,177.94,15.10621557]
[1754917988991,10.3353852,177.98,177.94,15.10621557]
[1754917989187,9.6453852,177.98,177.94,20.72602942]
[1754917989395,9.6453852,177.98,177.95,0.06]
[1754917990491,0.59,177.98,177.95,0.06]
[1754917990807,10.2353852,177.98,177.95,0.06]
[1754917991002,9.6453852,177.97,177.95,0.06]
[1754917991584,10.2353852,177.96,177.95,0.06]
[1754917992407,23.69140304,177.99,177.95,0.06]
[1754917992408,56.45376831,177.99,177.95,0.06]
[1754917992588,9.6453852,177.97,177.95,0.06]
[1754917993191,10.2353852,177.96,177.95,0.06]
[1754917993487,9.6453852,177.97,177.95,0.06]
[1754917993703,19.2907702,177.99,177.95,0.75]
[1754917993902,9.6453852,177.99,177.95,0.75]
[1754917994297,45.2907702,178.0,177.95,10.3953852]
[1754917994503,9.6453852,177.99,177.95,0.75]
[1754917994802,10.2353852,177.98,177.95,0.06]
[1754917995112,9.6453852,177.97,177.95,0.06]
[1754917995288,0.59,177.98,177.95,0.06]
[1754917995289,9.6453852,177.96,177.95,0.06]
[1754917995496,10.3353852,177.96,177.95,0.06]
[1754917995944,9.6453852,177.96,177.95,0.06]
[1754917996999,9.6453852,177.97,177.95,0.06]
[1754917997203,15.26435921,177.97,177.95,0.06]
[1754917997404,9.6453852,177.97,177.95,0.06]
[1754917997820,41.29,177.98,177.95,0.06]
[1754917998124,144.93919002,177.99,177.96,9.6453852]